fUST/lending_fUST_20240911
["ID","MTS","AMOUNT","RATE_DAILY","PERIOD"]
[337750013,1726039848442,-843.381267,0.00032836,7]
[337750014,1726039848452,-843.381267,0.00032836,7]
[337750015,1726039848462,-843.381267,0.00032836,7]
[337750016,1726039848472,-843.381275,0.00032836,7]
[337750017,1726039848482,-527.264431,0.00032836,7]
[337750018,1726039848492,-527.264431,0.00032836,7]
[337750019,1726039848501,-527.264431,0.00032836,7]
[337750020,1726039848511,-527.264431,0.00032836,7]
[337750021,1726039848521,-527.264431,0.00032836,7]
[337750022,1726039848533,-527.264431,0.00032836,7]
[337750023,1726039848543,-527.264422,0.00032836,7]
[337750024,1726039848552,-179.272235,0.00032836,7]
[337750025,1726039848562,-179.272235,0.00032836,7]
[337750026,1726039848571,-179.272235,0.00032836,7]
[337750027,1726039848581,-179.272235,0.00032836,7]
[337750028,1726039848590,-179.272235,0.00032836,7]
[337750029,1726039848600,-179.272235,0.00032836,7]
[337750030,1726039848611,-179.272235,0.00032836,7]
[337750031,1726039848621,-179.272235,0.00032836,7]
[337750032,1726039848630,-179.272235,0.00032836,7]
[337750033,1726039848640,-179.272235,0.00032836,7]
[337750034,1726039848649,-179.272235,0.00032836,7]
[337750035,1726039848659,-179.272235,0.00032836,7]
[337750036,1726039848668,-179.272235,0.00032836,7]
[337750037,1726039848678,-179.272231,0.00032836,7]
[337750038,1726039848687,-300.10167,0.00032836,7]
[337750039,1726039848696,-370.589179,0.00032836,7]
[337750040,1726039848706,-370.589179,0.00032836,7]
[337750041,1726039848716,-370.589179,0.00032836,7]
[337750042,1726039848725,-370.589179,0.00032836,7]
[337750043,1726039848734,-370.589179,0.00032836,7]
[337750044,1726039848744,-370.589179,0.00032836,7]
[337750045,1726039848754,-151.0,0.00032836,7]
[337750046,1726039848763,-370.589179,0.00032836,7]
[337750047,1726039848777,-151.0,0.00032836,7]
[337750048,1726039848798,-151.0,0.00032836,7]
[337750049,1726039848808,-370.589179,0.00032836,7]
[337750050,1726039848818,-151.0,0.00032836,7]
[337750051,1726039848828,-370.589179,0.00032836,7]
[337750052,1726039848838,-151.0,0.00032836,7]
[337750053,1726039848851,-151.0,0.00032836,7]
[337750054,1726039848862,-151.0,0.00032836,7]
[337750055,1726039848871,-370.589179,0.00032836,7]
[337750056,1726039848882,-370.589179,0.00032836,7]
[337750057,1726039848892,-370.589179,0.00032836,7]
[337750058,1726039848902,-370.589179,0.00032836,7]
[337750059,1726039848912,-151.0,0.00032836,7]
[337750060,1726039848922,-370.589179,0.00032836,7]
[337750061,1726039848932,-151.0,0.00032836,7]
[337750062,1726039848943,-290.033009,0.00032836,7]
[337750063,1726039848953,-941.554234,0.00032836,7]
[337750064,1726039848963,-941.554234,0.00032836,7]
[337750065,1726039848973,-941.554234,0.00032836,7]
[337750066,1726039848982,-941.554234,0.00032836,7]
[337750067,1726039848992,-941.554234,0.00032836,7]
[337750068,1726039849002,-941.554234,0.00032836,7]
[337750069,1726039849012,-941.554234,0.00032836,7]
[337750070,1726039849021,-479.155534,0.00032836,7]
[337750071,1726039849036,-479.155534,0.00032836,7]
[337750072,1726039849047,-941.554234,0.00032836,7]
[337750073,1726039849056,-479.155534,0.00032836,7]
[337750074,1726039849066,-941.554234,0.00032836,7]
[337750075,1726039849075,-479.155534,0.00032836,7]
[337750076,1726039849085,-941.554234,0.00032836,7]
[337750077,1726039849094,-479.155534,0.00032836,7]
[337750078,1726039849104,-2000.0,0.00032842,2]
[337750079,1726039849114,-2000.0,0.00032842,2]
[337750080,1726039849123,-2000.0,0.00032842,2]
[337750081,1726039849133,-2000.0,0.00032842,2]
[337750082,1726039849142,-1105.73130748,0.00032842,2]
[337750083,1726039849153,-195.361237,0.00032842,7]
[337750084,1726039849163,-151.0,0.00032842,7]
[337750085,1726039849172,-195.361237,0.00032842,7]
[337750086,1726039849183,-464.558634,0.00032842,7]
[337750087,1726039849193,-464.558634,0.00032842,7]
[337750088,1726039849204,-318.821677,0.00032842,7]
[337750089,1726039849215,-318.821677,0.00032842,7]
[337750090,1726039849224,-151.0,0.00032843,7]
[337750091,1726039849234,-151.0,0.00032843,7]
[337750092,1726039849245,-151.0,0.00032843,7]
[337750093,1726039849261,-160.468861,0.00032843,7]
[337750094,1726039849272,-151.0,0.00032843,7]
[337750095,1726039849283,-151.0,0.00032843,7]
[337750096,1726039849293,-151.0,0.00032843,7]
[337750097,1726039849304,-155.140206,0.00032843,7]
[337750098,1726039849316,-151.0,0.00032843,7]
[337750099,1726039849326,-151.0,0.00032843,7]
[337750100,1726039849337,-151.0,0.00032843,7]
[337750101,1726039849349,-151.0,0.00032843,7]
[337750102,1726039849360,-151.0,0.00032843,7]
[337750103,1726039849370,-156.355115,0.00032843,7]
[337750104,1726039849381,-151.0,0.00032843,7]
[337750105,1726039849391,-151.0,0.00032843,7]
[337750106,1726039849401,-151.0,0.00032843,7]
[337750107,1726039849410,-151.0,0.00032843,7]
[337750108,1726039849420,-151.0,0.00032843,7]
[337750109,1726039849430,-151.0,0.00032843,7]
[337750110,1726039849440,-151.0,0.00032843,7]
[337750111,1726039849449,-151.0,0.00032843,7]
[337750112,1726039849459,-151.0,0.00032843,7]
[337750113,1726039849469,-294.484643,0.00032843,7]
[337750114,1726039849479,-156.945182,0.00032843,7]
[337750115,1726039849489,-156.945182,0.00032843,7]
[337750116,1726039849498,-156.945182,0.00032843,7]
[337750117,1726039849508,-156.945182,0.00032843,7]
[337750118,1726039849518,-156.945182,0.00032843,7]
[337750119,1726039849530,-156.945182,0.00032843,7]
[337750120,1726039849539,-242.631124,0.00032843,7]
[337750121,1726039849549,-242.631124,0.00032843,7]
[337750122,1726039849559,-242.631124,0.00032843,7]
[337750123,1726039849568,-242.631124,0.00032843,7]
[337750124,1726039849578,-242.631124,0.00032843,7]
[337750125,1726039849588,-242.631124,0.00032843,7]
[337750126,1726039849599,-242.631124,0.00032843,7]
[337750127,1726039849609,-242.631124,0.00032843,7]
[337750128,1726039849620,-165.255175,0.00032843,7]
[337750129,1726039849629,-220.007902,0.00032843,7]
[337750130,1726039849640,-220.007902,0.00032843,7]
[337750131,1726039849651,-220.007902,0.00032843,7]
[337750132,1726039849660,-220.007902,0.00032843,7]
[337750133,1726039849670,-220.007902,0.00032843,7]
[337750134,1726039849680,-220.007902,0.00032843,7]
[337750135,1726039849690,-220.007902,0.00032843,7]
[337750136,1726039849700,-154.65416,0.00032843,7]
[337750137,1726039849709,-220.007902,0.00032843,7]
[337750138,1726039849719,-220.007902,0.00032843,7]
[337750139,1726039849728,-220.007901,0.00032843,7]
[337750140,1726039849738,-262.540508,0.00032843,7]
[337750141,1726039849747,-262.540508,0.00032843,7]
[337750142,1726039849757,-262.540508,0.00032843,7]
[337750143,1726039849767,-262.540508,0.00032843,7]
[337750144,1726039849779,-262.540508,0.00032843,7]
[337750145,1726039849789,-262.540508,0.00032843,7]
[337750146,1726039849800,-262.540508,0.00032843,7]
[337750147,1726039849810,-262.540508,0.00032843,7]
[337750148,1726039849819,-262.540508,0.00032843,7]
[337750149,1726039849829,-262.540503,0.00032843,7]
[337750150,1726039849839,-1404.045473,0.00032843,7]
[337750151,1726039849849,-1404.045473,0.00032843,7]
[337750152,1726039849859,-1404.045473,0.00032843,7]
[337750153,1726039849869,-1404.045473,0.00032843,7]
[337750154,1726039849879,-1404.045473,0.00032843,7]
[337750155,1726039849889,-1404.045473,0.00032843,7]
[337750156,1726039849899,-913.09162779,0.00032843,7]
[337750157,1726039849927,-500.0,0.00032761,2]
[337750158,1726039849937,-490.95384521,0.00032843,7]
[337750159,1726039849947,-1404.045473,0.00032843,7]
[337750160,1726039849957,-1404.045473,0.00032843,7]
[337750161,1726039849967,-1404.045477,0.00032843,7]
[337750162,1726039849976,-151.0,0.00032843,7]
[337750163,1726039849986,-151.0,0.00032843,7]
[337750164,1726039849996,-151.0,0.00032843,7]
[337750165,1726039850006,-151.0,0.00032843,7]
[337750166,1726039850016,-155.259444,0.00032843,7]
[337750167,1726039850025,-261.988978,0.00032843,7]
[337750168,1726039850036,-261.988978,0.00032843,7]
[337750169,1726039850045,-261.988978,0.00032843,7]
[337750170,1726039850054,-261.988978,0.00032843,7]
[337750171,1726039850064,-261.988978,0.00032843,7]
[337750172,1726039850074,-261.988978,0.00032843,7]
[337750173,1726039850083,-261.988978,0.00032843,7]
[337750174,1726039850094,-261.988974,0.00032843,7]
[337750175,1726039850104,-151.705296,0.00032843,7]
[337750176,1726039850113,-151.705296,0.00032843,7]
[337750177,1726039850123,-151.705296,0.00032843,7]
[337750178,1726039850132,-151.705296,0.00032843,7]
[337750179,1726039850142,-1437.250824,0.00032843,7]
[337750180,1726039850152,-1437.250824,0.00032843,7]
[337750181,1726039850162,-151.705296,0.00032843,7]
[337750182,1726039850173,-151.705296,0.00032843,7]
[337750183,1726039850182,-151.705296,0.00032843,7]
[337750184,1726039850192,-151.70529,0.00032843,7]
[337750185,1726039850201,-1437.250824,0.00032843,7]
[337750186,1726039850211,-1437.250824,0.00032843,7]
[337750187,1726039850220,-154.778277,0.00032843,7]
[337750188,1726039850230,-1437.250824,0.00032843,7]
[337750189,1726039850240,-1437.250824,0.00032843,7]
[337750190,1726039850249,-1437.250824,0.00032843,7]
[337750191,1726039850258,-1437.25082,0.00032843,7]
[337750192,1726039850268,-825.516572,0.00032843,7]
[337750193,1726039850278,-825.516572,0.00032843,7]
[337750194,1726039850288,-825.516572,0.00032843,7]
[337750195,1726039850298,-825.516572,0.00032843,7]
[337750196,1726039850307,-825.516572,0.00032843,7]
[337750197,1726039850317,-825.516572,0.00032843,7]
[337750198,1726039850328,-825.516572,0.00032843,7]
[337750199,1726039850339,-825.516572,0.00032843,7]
[337750200,1726039850351,-825.516572,0.00032843,7]
[337750201,1726039850361,-825.516576,0.00032843,7]
[337750202,1726039850371,-611.665716,0.00032843,7]
[337750203,1726039850381,-611.665716,0.00032843,7]
[337750204,1726039850390,-611.665716,0.00032843,7]
[337750205,1726039850400,-611.665716,0.00032843,7]
[337750206,1726039850409,-611.665716,0.00032843,7]
[337750207,1726039850419,-611.665716,0.00032843,7]
[337750208,1726039850428,-611.665716,0.00032843,7]
[337750209,1726039850438,-611.665714,0.00032843,7]
[337750210,1726039850447,-10000.0,0.00032843,7]
[337750211,1726039850456,-10000.0,0.00032843,7]
[337750212,1726039850465,-10000.0,0.00032843,7]
[337750213,1726039850521,-2534.38039411,0.00032843,7]
[337750214,1726039916993,-40000.0,0.000266,2]
[337750271,1726041038219,-150.0,0.00025,2]
[337750272,1726041038229,-150.0,0.00028,2]
[337750275,1726041038240,-166.666666,0.00029805,2]
[337750276,1726041038250,-150.0,0.0003,2]
[337750279,1726041038260,-205.5501823,0.0003024,2]
[337750281,1726041038270,-4499.472947,0.00030398,2]
[337750283,1726041038279,-166.666666,0.00030617,2]
[337750285,1726041038288,-705.5824016,0.0003116,2]
[337750286,1726041038298,-166.666666,0.0003143,2]
[337750288,1726041038307,-705.5824016,0.0003166,2]
[337750290,1726041038316,-705.5824016,0.0003216,2]
[337750292,1726041038328,-166.666666,0.00032242,2]
[337750294,1726041038339,-399.65818053,0.000324,2]
[337750295,1726041038353,-1027.0,0.000325,5]
[337750297,1726041038364,-2000.0,0.000325,2]
[337750298,1726041038373,-155.0,0.0003261,27]
[337750299,1726041038383,-705.5824016,0.0003266,2]
[337750300,1726041038392,-491.39815907,0.000327,5]
[337750301,1726041038402,-410.3982993,0.000327,2]
[337750302,1726041038411,-410.3982993,0.000327,2]
[337750303,1726041038421,-1000.0,0.00032722,2]
[337750304,1726041038432,-1173.89473017,0.00032733,2]
[337750315,1726041043248,-1530.33236403,0.00032733,2]
[337750316,1726041043258,-3871.65,0.00032791,3]
[337750317,1726041043269,-6759.09,0.00032791,3]
[337750318,1726041043278,-375.42,0.00032792,3]
[337750319,1726041043287,-187.71,0.00032792,3]
[337750320,1726041043297,-1000.0,0.000328,2]
[337750322,1726041043307,-2000.0,0.000328,2]
[337750323,1726041043316,-176.462628,0.000328,2]
[337750324,1726041043326,-167.0575478,0.00032801,2]
[337750325,1726041043337,-500.0,0.00032801,2]
[337750326,1726041043348,-281.68022937,0.00032801,2]
[337750328,1726041043359,-181.85900217,0.00032801,2]
[337750330,1726041043369,-500.0,0.00032801,2]
[337750332,1726041043378,-500.0,0.00032801,2]
[337750333,1726041043387,-500.0,0.00032801,2]
[337750334,1726041043398,-500.0,0.00032801,2]
[337750335,1726041043407,-642.51366664,0.00032801,2]
[337750336,1726041043417,-500.0,0.00032801,2]
[337750337,1726041043428,-500.0,0.00032801,2]
[337750338,1726041043439,-500.0,0.00032801,2]
[337750339,1726041043459,-500.0,0.00032801,2]
[337750340,1726041043470,-500.0,0.00032801,2]
[337750341,1726041043479,-500.0,0.00032801,2]
[337750342,1726041043488,-500.0,0.00032801,2]
[337750343,1726041043498,-500.0,0.00032801,2]
[337750344,1726041043507,-500.0,0.00032801,2]
[337750345,1726041043519,-500.0,0.00032801,2]
[337750346,1726041043529,-500.0,0.00032801,2]
[337750347,1726041043540,-500.0,0.00032801,2]
[337750348,1726041043552,-500.0,0.00032801,2]
[337750349,1726041043563,-500.0,0.00032801,2]
[337750350,1726041043572,-500.0,0.00032801,2]
[337750351,1726041043582,-591.00433838,0.00032801,2]
[337750352,1726041043592,-38342.78082693,0.00032802,4]
[337750383,1726041327838,853.69,0.0002,2]
[337750456,1726042232300,-1000.0,0.00025999,10]
[337750457,1726042232310,-3.4204636,0.00026,10]
[337750458,1726042232353,-196.5795364,0.00026,10]
[337750459,1726042232363,-1000.0,0.0002657,10]
[337750460,1726042232372,-168.142376,0.00028892,2]
[337750461,1726042232381,-168.142376,0.00030861,2]
[337750462,1726042232390,-686.47675442,0.0003116,2]
[337750463,1726042232403,-19.10564758,0.0003116,2]
[337750464,1726042232413,-1571.61916263,0.00031728,2]
[337750465,1726042232423,-310.47837292,0.00031773,5]
[337750466,1726042232433,-1000.0,0.00031788,2]
[337750467,1726042232443,-309.71681687,0.000318,3]
[337750468,1726042232484,-1072.71336823,0.000318,3]
[337750469,1726042232495,-638.47376119,0.000318,3]
[337750470,1726042232507,-300.18914923,0.000318,3]
[337750502,1726042238319,-346.71767007,0.000318,3]
[337750504,1726042238333,-43930.5537931,0.000318,3]
[337750506,1726042238345,-3277.21307804,0.000318,3]
[337750672,1726042240322,-124.42236327,0.000318,3]
[337750673,1726042240331,-500.0,0.00031836,2]
[337750674,1726042240341,-500.0,0.00031836,2]
[337750675,1726042240350,-500.0,0.00031836,2]
[337750676,1726042240360,-500.0,0.00031836,2]
[337750677,1726042240370,-500.0,0.00031836,2]
[337750678,1726042240379,-500.0,0.00031836,2]
[337750679,1726042240389,-500.0,0.00031836,2]
[337750680,1726042240398,-500.0,0.00031836,2]
[337750681,1726042240408,-500.0,0.00031836,2]
[337750682,1726042240418,-500.0,0.00031836,2]
[337750683,1726042240427,-500.0,0.00031836,2]
[337750684,1726042240436,-500.0,0.00031836,2]
[337750685,1726042240446,-500.0,0.00031836,2]
[337750686,1726042240454,-592.51366664,0.00031836,2]
[337750687,1726042240464,-500.0,0.00031836,2]
[337750688,1726042240474,-500.0,0.00031836,2]
[337750689,1726042240483,-500.0,0.00031836,2]
[337750690,1726042240492,-500.0,0.00031836,2]
[337750692,1726042240502,-500.0,0.00031836,2]
[337750694,1726042240512,-500.0,0.00031836,2]
[337750696,1726042240522,-500.0,0.00031836,2]
[337750698,1726042240533,-24978.03,0.00031838,3]
[337750700,1726042240543,-483.68,0.00031838,3]
[337750702,1726042240554,-241.84,0.00031838,3]
[337750704,1726042240564,-8427.84327145,0.00031848,4]
[337750706,1726042240577,-2257.22439788,0.00031848,4]
[337750708,1726042240590,-2670.57,0.00031848,4]
[337750709,1726042240603,-74472.37346997,0.00031848,4]
[337750711,1726042240613,-500.0,0.00031857,2]
[337750713,1726042240623,-281.68022937,0.00031857,2]
[337750715,1726042240632,-500.0,0.00031857,2]
[337750716,1726042240643,-272.86334055,0.00031857,2]
[337750717,1726042240652,-52100.97334006,0.00031858,4]
[337750718,1726042240665,-1658.77657503,0.00031858,4]
[337750739,1726042243250,-20815.03,0.00031838,3]
[337750740,1726042243261,-64119.64535174,0.00031858,4]
[337750741,1726042243303,-65077.22823929,0.00031858,4]
[337750750,1726042246629,-301.24211674,0.00031858,4]
[337750902,1726043440680,-200.0,0.000215,7]
[337750903,1726043440690,-200.0,0.000215,7]
[337750904,1726043440700,-168.142376,0.00027349,2]
[337750905,1726043440714,-5086.03855687,0.0003,2]
[337750906,1726043440723,-166.0,0.0003158,2]
[337750907,1726043440733,-50000.0,0.0003158,2]
[337750908,1726043440743,-1000.0,0.0003168,2]
[337750909,1726043440752,-642.88,0.0003175,3]
[337750910,1726043440763,-26853.38,0.0003176,3]
[337750911,1726043440774,-321.44,0.0003176,3]
[337750912,1726043440785,-500.0,0.00031769,2]
[337750913,1726043440796,-281.68022937,0.00031769,2]
[337750914,1726043440808,-167.0575478,0.00031769,2]
[337750915,1726043440818,-500.0,0.00031769,2]
[337750916,1726043440828,-272.86334055,0.00031769,2]
[337750917,1726043440838,-500.0,0.00031769,2]
[337750918,1726043440847,-500.0,0.00031769,2]
[337750919,1726043440856,-176.94596296,0.00031769,2]
[337750920,1726043440866,-2433.80438478,0.00031769,2]
[337750921,1726043440876,-38157.65798162,0.0003177,4]
[337750945,1726043443550,-18817.31413371,0.0003176,3]
[337750950,1726043446610,-3560.50586629,0.0003176,3]
[337750951,1726043446620,-154813.63184738,0.0003177,4]
[337750952,1726043446630,-500.80139016,0.00031773,5]
[337750953,1726043446640,-500.45446727,0.00031773,5]
[337750954,1726043446649,-500.0,0.00031773,5]
[337750955,1726043446659,-96485.6449145,0.0003178,4]
[337750956,1726043446669,-96485.6449145,0.0003179,4]
[337750957,1726043446678,-287.49332,0.0003179,7]
[337750958,1726043446687,-287.49332,0.0003179,7]
[337750959,1726043446697,-151.0,0.0003179,7]
[337750960,1726043446706,-188.310847,0.0003179,7]
[337750962,1726043446716,-188.310847,0.0003179,7]
[337750964,1726043446726,-151.0,0.0003179,7]
[337750966,1726043446736,-151.0,0.0003179,7]
[337750967,1726043446745,-151.0,0.0003179,7]
[337750969,1726043446755,-12106.33932143,0.000318,2]
[337750971,1726043446766,-284.61,0.000318,2]
[337750998,1726044451171,1000.0,0.00026849,20]
[337751076,1726044638631,-183.519257,0.00023453,2]
[337751077,1726044638642,-166.961808,0.00024358,2]
[337751078,1726044638652,-3000.0,0.00024669,2]
[337751079,1726044638662,-166.961808,0.00025188,2]
[337751080,1726044638672,-11348.93726978,0.00025349,2]
[337751081,1726044638684,-651.30631796,0.00025349,2]
[337751111,1726044640725,-12899.75641226,0.00025349,2]
[337751112,1726044640995,-500.0,0.000254,2]
[337751113,1726044641019,-501.01549981,0.000254,2]
[337751114,1726044641029,-250.0,0.00025658,2]
[337751115,1726044641038,-870.540205,0.00025681,2]
[337751116,1726044641047,-250.0,0.00025728,2]
[337751117,1726044641056,-250.0,0.00025734,2]
[337751118,1726044641066,-161.710129,0.00025763,2]
[337751119,1726044641075,-267.2778074,0.00025787,2]
[337751120,1726044641085,-250.0,0.00025798,2]
[337751121,1726044641094,-380.0,0.00025836,2]
[337751122,1726044641104,-250.0,0.00025869,2]
[337751123,1726044641114,-233.33635743,0.00025899,2]
[337751124,1726044641123,-793.938501,0.00025899,2]
[337751125,1726044641133,-1375.16676731,0.0002591,2]
[337751126,1726044641143,-183.519257,0.00025921,2]
[337751127,1726044641152,-250.0,0.00025939,2]
[337751128,1726044641161,-250.0,0.00026009,2]
[337751129,1726044641170,-166.961808,0.00026018,2]
[337751130,1726044641180,-250.0,0.0002608,2]
[337751131,1726044641189,-250.0,0.0002615,2]
[337751132,1726044641199,-250.0,0.00026221,2]
[337751133,1726044641208,-250.0,0.00026291,2]
[337751134,1726044641217,-250.0,0.00026361,2]
[337751135,1726044641227,-250.0,0.00026432,2]
[337751136,1726044641236,-250.0,0.00026502,2]
[337751137,1726044641245,-250.0,0.00026572,2]
[337751138,1726044641254,-250.0,0.00026643,2]
[337751139,1726044641265,-250.0,0.00026713,2]
[337751140,1726044641274,-500.0,0.0002677,2]
[337751141,1726044641283,-250.0,0.00026783,2]
[337751142,1726044641292,-166.961808,0.00026848,2]
[337751143,1726044641302,-250.0,0.00026854,2]
[337751144,1726044641311,-250.0,0.00026924,2]
[337751145,1726044641320,-250.0,0.00026994,2]
[337751146,1726044641329,-157.0,0.00027,2]
[337751147,1726044641338,-2403.0,0.00027,2]
[337751148,1726044641347,-206.661745,0.00027143,2]
[337751149,1726044641357,-193.237837,0.00027197,2]
[337751150,1726044641366,-502.6250753,0.00027273,2]
[337751151,1726044641375,-253.85677482,0.00027273,2]
[337751152,1726044641385,-374.54974682,0.000273,2]
[337751153,1726044641394,-536.75740704,0.000273,2]
[337751154,1726044641403,-500.0,0.00027301,2]
[337751155,1726044641414,-465.50510289,0.0002734,2]
[337751156,1726044641424,-166.961808,0.00027679,2]
[337751157,1726044641434,-1375.16676729,0.00027871,2]
[337751158,1726044641444,-465.02525514,0.00028707,2]
[337751159,1726044641453,-500.0,0.00028738,5]
[337751160,1726044641463,-187.43848479,0.00029,2]
[337751161,1726044641473,-405.702685,0.00029,2]
[337751162,1726044641482,-405.702685,0.00029008,2]
[337751163,1726044641492,-405.702685,0.00029016,2]
[337751164,1726044641501,-405.702685,0.00029023,2]
[337751165,1726044641510,-405.702685,0.00029031,2]
[337751166,1726044641519,-405.702685,0.00029038,2]
[337751167,1726044641529,-405.702685,0.00029046,2]
[337751168,1726044641538,-405.702685,0.00029054,2]
[337751169,1726044641549,-405.702685,0.00029061,2]
[337751170,1726044641559,-405.702685,0.00029069,2]
[337751171,1726044641568,-405.702685,0.00029077,2]
[337751172,1726044641578,-405.702685,0.00029084,2]
[337751173,1726044641587,-405.702685,0.00029092,2]
[337751174,1726044641597,-405.702685,0.000291,2]
[337751175,1726044641607,-405.702685,0.00029107,2]
[337751176,1726044641616,-405.702685,0.00029115,2]
[337751177,1726044641626,-405.702685,0.00029123,2]
[337751178,1726044641636,-405.702685,0.0002913,2]
[337751179,1726044641646,-405.702685,0.00029138,2]
[337751180,1726044641656,-405.702685,0.00029145,2]
[337751181,1726044641667,-1375.16676729,0.00029832,2]
[337751182,1726044641676,-166.0,0.0003,2]
[337751183,1726044641687,-220.60417015,0.00030175,5]
[337751184,1726044641696,-153.0,0.00030904,2]
[337751185,1726044641706,-153.0,0.00030904,2]
[337751186,1726044641716,-153.0,0.00030904,2]
[337751187,1726044641726,-153.0,0.00030904,2]
[337751188,1726044641735,-500.0,0.00030979,2]
[337751189,1726044641745,-500.0,0.00030979,2]
[337751190,1726044641755,-500.0,0.00030979,2]
[337751191,1726044641766,-500.0,0.00030979,2]
[337751192,1726044641776,-500.0,0.00030979,2]
[337751193,1726044641786,-176.94596296,0.00030979,2]
[337751194,1726044641796,-647.85,0.0003099,3]
[337751195,1726044641806,-44332.23166275,0.00031,10]
[337751196,1726044641816,-153.0,0.00031233,2]
[337751197,1726044641826,-153.0,0.00031233,2]
[337751198,1726044641835,-153.0,0.00031233,2]
[337751199,1726044641845,-153.0,0.00031233,2]
[337751200,1726044641855,-2433.80438478,0.00031686,2]
[337751201,1726044641865,-421.32773532,0.0003169,2]
[337751202,1726044641875,-1000.0,0.00031696,2]
[337751203,1726044641885,-80442.2855856,0.00031756,4]
[337751204,1726044641895,-272.86334055,0.00031765,2]
[337751205,1726044641906,-167.0575478,0.00031765,2]
[337751206,1726044641917,-281.68022937,0.00031765,2]
[337751207,1726044641926,-500.0,0.00031765,2]
[337751208,1726044641936,-500.0,0.00031765,2]
[337751209,1726044641947,-151.0,0.00031766,7]
[337751210,1726044641957,-151.0,0.00031766,7]
[337751211,1726044641967,-151.0,0.00031766,7]
[337751212,1726044641976,-151.0,0.00031766,7]
[337751213,1726044641985,-151.0,0.00031766,7]
[337751214,1726044641996,-151.0,0.00031766,7]
[337751215,1726044642006,-151.0,0.00031766,7]
[337751216,1726044642017,-151.0,0.00031766,7]
[337751217,1726044642026,-13154.43595495,0.00031766,4]
[337751218,1726044642039,-62268.34565123,0.00031766,4]
[337751310,1726045793929,501.0,0.00028,120]
[337751353,1726045831868,-436.33522896,0.00027633,2]
[337751356,1726045831882,-736.23740997,0.00027633,2]
[337751429,1726045837971,-4599.76480308,0.00027633,2]
[337751494,1726045839955,-4012.52127693,0.00027633,2]
[337751495,1726045839966,-193.237837,0.00027733,2]
[337751496,1726045839978,-24900.0,0.00027903,2]
[337751497,1726045839988,-435.270103,0.00027912,2]
[337751498,1726045839998,-250.0,0.00028069,2]
[337751499,1726045840010,-692.7041937,0.00028114,2]
[337751500,1726045840020,-200.0,0.0002848,2]
[337751501,1726045840030,-200.0,0.00028558,2]
[337751503,1726045840040,-200.0,0.00028636,2]
[337751504,1726045840050,-200.0,0.00028714,2]
[337751505,1726045840060,-220.60417015,0.00028738,5]
[337751506,1726045840070,-200.0,0.00028792,2]
[337751507,1726045840079,-200.0,0.0002887,2]
[337751508,1726045840089,-200.0,0.00028948,2]
[337751509,1726045840099,-200.0,0.00029026,2]
[337751510,1726045840108,-200.0,0.00029104,2]
[337751511,1726045840118,-200.0,0.00029183,2]
[337751512,1726045840128,-200.0,0.00029261,2]
[337751513,1726045840137,-200.0,0.00029339,2]
[337751514,1726045840147,-200.0,0.00029417,2]
[337751515,1726045840157,-200.0,0.00029495,2]
[337751516,1726045840168,-200.0,0.00029573,2]
[337751517,1726045840177,-200.0,0.00029651,2]
[337751518,1726045840191,-200.0,0.00029729,2]
[337751519,1726045840201,-200.0,0.00029807,2]
[337751520,1726045840211,-200.0,0.00029886,2]
[337751521,1726045840220,-200.0,0.00029964,2]